bitfinex/quotes_SOLUSD_20240604
["timestamp","ask_amount","ask_price","bid_price","bid_amount"]
[1717531209651,6.15102924,169.6,169.55,2.1822]
[1717531209846,7.9220113,169.6,169.54,4.3647]
[1717531210046,10.1036113,169.6,169.52,13.0951]
[1717531210259,7.9220113,169.6,169.5,46.1191]
[1717531210451,2.1819,169.58,169.53,2.1824]
[1717531210753,2.1819,169.58,169.54,2.1823]
[1717531210964,2.1817,169.59,169.54,2.1823]
[1717531211139,0.17,169.58,169.47,57.2188]
[1717531211472,2.1824,169.54,169.49,2.1829]
[1717531211774,10.4294113,169.54,169.49,2.1829]
[1717531212154,10.4294113,169.54,169.5,2.1828]
[1717531212155,8.2470113,169.54,169.5,2.1828]
[1717531212563,10.4293113,169.54,169.5,2.1828]
[1717531213270,8.2470113,169.54,169.5,2.1828]
[1717531213761,8.2470113,169.54,169.5,2.1827]
[1717531214065,8.2470113,169.54,169.51,2.1827]
[1717531214377,2.1823,169.54,169.49,2.1829]
[1717531214671,2.1825,169.53,169.49,2.1829]
[1717531214855,8.2470113,169.55,169.49,2.1829]
[1717531214856,2.1824,169.54,169.49,2.1829]
[1717531215685,2.1825,169.53,169.49,2.1829]
[1717531215890,22.9951,169.56,169.44,35.52]
[1717531216044,2.1828,169.51,169.46,2.1833]
[1717531216745,2.1828,169.51,169.47,2.1832]
[1717531216964,2.1826,169.52,169.47,2.1832]
[1717531217160,2.1827,169.51,169.47,2.1832]
[1717531218075,2.1826,169.52,169.47,2.1832]
[1717531218292,2.1825,169.53,169.48,2.1831]
[1717531218575,10.4295113,169.53,169.48,2.183]
[1717531218778,10.4295113,169.53,169.49,2.1829]
[1717531219279,10.4295113,169.53,169.46,4.3666]
[1717531219280,10.4295113,169.53,169.48,2.183]
[1717531219491,2.1826,169.52,169.48,2.183]
[1717531220189,2.1826,169.52,169.47,2.1832]
[1717531220493,2.1826,169.52,169.48,2.1831]
[1717531221097,2.1825,169.53,169.48,2.1831]
[1717531221386,4.3652,169.52,169.48,0.3552]
[1717531221554,2.1829,169.5,169.48,0.3552]
[1717531221755,2.183,169.49,169.48,0.3552]
[1717531221962,6.549,169.49,169.48,0.3552]
[1717531224179,15.39433627,169.49,169.48,0.3552]
[1717531224485,15.40422229,169.49,169.48,0.3552]
[1717531225075,24.9551,169.49,169.48,0.3552]
[1717531225272,32.86872241,169.49,169.48,0.3552]
[1717531225987,33.36882241,169.49,169.48,0.3552]
[1717531226689,32.86872241,169.49,169.48,0.3552]
[1717531227103,37.23762241,169.49,169.48,0.3552]
[1717531229700,6.55,169.47,169.36,39.87348358]
[1717531230008,2.1837,169.44,169.4,2.1841]
[1717531230988,2.1839,169.42,169.38,8.6317]
[1717531231186,2.1838,169.43,169.39,2.1842]
[1717531231506,2.1837,169.44,169.4,2.1841]
[1717531232707,2.1838,169.43,169.39,2.1842]
[1717531233410,2.1837,169.44,169.4,2.1841]
[1717531233787,2.1838,169.43,169.39,2.1842]
[1717531235609,11.0416719,169.44,169.4,2.1841]
[1717531235908,2.1837,169.43,169.39,2.1842]
[1717531237009,2.1839,169.42,169.38,2.1843]
[1717531237890,6.7,169.4,169.38,2.1843]
[1717531238393,6.7,169.39,169.38,2.1843]
[1717531238589,6.7,169.39,169.36,8.4656]
[1717531238787,6.7,169.37,169.36,8.4656]
[1717531240893,6.7,169.37,169.36,2.1846]
[1717531241994,6.7,169.37,169.32,41.7089]
[1717531242200,6.7,169.35,169.33,17.3463]
[1717531242930,11.0424719,169.38,169.34,2.1849]
[1717531243135,6.7,169.35,169.31,19.2569]
[1717531243418,8.8579719,169.37,169.31,19.2569]
[1717531243419,6.7,169.33,169.32,2.1852]
[1717531243838,6.7,169.33,169.32,6.5556]
[1717531244621,8.8579719,169.36,169.34,2.1848]
[1717531244818,6.7,169.35,169.34,2.1848]
[1717531245313,6.7,169.36,169.34,2.1848]
[1717531245823,6.7,169.35,169.33,2.185]
[1717531246194,6.7,169.34,169.33,2.185]
[1717531246542,6.7,169.35,169.33,2.185]
[1717531246697,11.0423719,169.38,169.32,26.7989]
[1717531246903,6.7,169.37,169.36,2.1846]
[1717531247839,15.5579719,169.39,169.37,2.1845]
[1717531247998,6.7,169.39,169.37,2.1845]
[1717531248192,6.7,169.39,169.38,2.1844]
[1717531248525,2.1841,169.41,169.38,2.1844]
[1717531248526,6.7,169.4,169.38,2.1844]
[1717531249016,6.7,169.4,169.36,6.4806]
[1717531249017,6.7,169.4,169.37,2.1844]
[1717531249600,4.3676,169.43,169.37,2.1844]
[1717531249813,2.1841,169.41,169.38,2.1844]
[1717531250003,12.76122241,169.43,169.39,8.6019]
[1717531250004,2.1839,169.42,169.39,8.6019]
[1717531250221,10.57742241,169.43,169.4,2.1841]
[1717531250523,13.2259658,169.45,169.39,6.4177]
[1717531250524,8.8587658,169.46,169.41,2.184]
[1717531250819,2.1837,169.44,169.4,6.4177]
[1717531251130,2.1837,169.44,169.4,8.6018]
[1717531251294,2.1837,169.44,169.38,4.4053]
[1717531251295,2.1841,169.41,169.38,0.0366]
[1717531252203,2.1842,169.4,169.38,0.0366]
[1717531252424,2.1841,169.41,169.38,0.0366]
[1717531252730,2.1839,169.42,169.38,2.221]
[1717531252917,2.1839,169.42,169.38,2.2989]
[1717531254017,4.3677,169.43,169.38,0.1145]
[1717531254220,2.1841,169.41,169.38,0.1145]
[1717531254817,4.3677,169.43,169.38,0.1145]
[1717531255017,2.184,169.41,169.38,0.1145]
[1717531255451,2.1839,169.42,169.38,2.2989]
[1717531256132,2.1838,169.43,169.39,2.1842]
[1717531256740,2.1838,169.43,169.4,2.1841]
[1717531256977,2.1838,169.43,169.39,2.1842]
[1717531257631,2.184,169.42,169.38,2.2989]
[1717531257832,2.184,169.41,169.38,2.2989]
[1717531258427,2.184,169.42,169.38,2.2989]
[1717531259239,2.184,169.41,169.38,2.2989]
[1717531259456,2.184,169.41,169.38,0.1145]
[1717531259626,2.1839,169.42,169.38,2.2988]
[1717531259828,11.04198441,169.43,169.39,2.1843]
[1717531260238,11.04198441,169.43,169.4,2.1841]
[1717531260456,8.85818441,169.42,169.39,8.1886]
[1717531260628,11.04208441,169.42,169.39,8.1886]
[1717531260834,2.1839,169.42,169.39,8.1886]
[1717531261457,2.1839,169.42,169.39,6.0044]
[1717531261828,2.1839,169.42,169.39,8.1886]
[1717531262838,2.1839,169.42,169.39,6.0044]
[1717531263564,4.3673,169.44,169.38,18.1713]
[1717531263565,2.184,169.41,169.38,15.987]
[1717531264352,2.184,169.41,169.38,0.1145]
[1717531264727,4.3679,169.42,169.38,0.1145]
[1717531264931,2.1843,169.39,169.38,0.1145]
[1717531266126,29.19178738,169.39,169.38,0.1145]
[1717531266748,13.90168738,169.39,169.38,0.1145]
[1717531267763,9.53308738,169.39,169.38,0.1145]
[1717531269361,13.90168738,169.39,169.38,0.1145]
[1717531269561,20.45458738,169.39,169.38,0.1145]
[1717531270132,36.45073499,169.39,169.38,0.1145]
[1717531270433,29.36178738,169.39,169.38,0.1145]
[1717531270631,29.53178738,169.39,169.38,0.1145]
[1717531270860,36.61994001,169.39,169.38,0.1145]
[1717531271933,2.1851,169.33,169.3,15.5576]
[1717531272139,6.7,169.31,169.3,15.5576]
[1717531272461,6.7,169.31,169.3,17.743]
[1717531272638,6.7,169.31,169.3,2.1854]
[1717531272835,6.7,169.31,169.29,9.5046608]
[1717531273060,6.7,169.3,169.29,9.5046608]
[1717531273228,6.7,169.3,169.29,7.3191608]
[1717531273432,2.1851,169.33,169.29,9.5046608]
[1717531273634,6.7,169.3,169.29,9.5046608]
[1717531273833,6.7,169.3,169.29,0.8389608]
[1717531274256,6.7,169.3,169.29,3.0244608]
[1717531275044,6.7,169.31,169.3,8.4382]
[1717531275239,8.57439849,169.33,169.3,8.4382]
[1717531275453,6.7,169.31,169.3,8.4382]
[1717531275767,15.27439849,169.33,169.31,8.7497]
[1717531275975,2.1849,169.35,169.32,6.5644]
[1717531276134,6.7,169.33,169.32,6.5644]
[1717531276763,8.885,169.33,169.32,6.5644]
[1717531276982,6.7,169.34,169.32,8.7495]
[1717531277259,6.7,169.34,169.32,6.5644]
[1717531278256,6.7,169.35,169.33,18.8273]
[1717531278443,2.1844,169.38,169.34,8.7339]
[1717531278660,8.8846,169.36,169.35,6.5491]
[1717531278966,4.3696,169.35,169.29,18.5925608]
[1717531279163,6.7,169.3,169.29,16.4070608]
[1717531279670,6.7,169.3,169.29,0.8389608]
[1717531280035,8.8854,169.3,169.29,0.8389608]
[1717531280558,6.7,169.3,169.29,0.8389608]
[1717531281977,2.1852,169.32,169.29,0.8389608]
[1717531283039,2.1853,169.31,169.29,0.8389608]
[1717531283246,24.48,169.34,169.29,0.8389608]
[1717531283454,2.1854,169.3,169.29,0.8389608]
[1717531285172,8.94502126,169.3,169.29,0.8389608]
[1717531285675,9.11502126,169.3,169.29,0.8389608]
[1717531287563,13.48592126,169.3,169.29,0.8389608]
[1717531287775,28.78412126,169.3,169.29,0.8389608]
[1717531287959,28.95412126,169.3,169.29,0.8389608]
[1717531289684,2.1863,169.24,169.2,2.1867]
[1717531289883,2.1863,169.24,169.11,255.0]
[1717531289884,4.373,169.22,169.14,6.4931]
[1717531290187,2.1869,169.19,169.16,6.28]
[1717531290393,4.76370486,169.21,169.16,6.28]
[1717531290566,2.1869,169.19,169.16,6.28]
[1717531290763,2.1868,169.2,169.16,8.4672]
[1717531291686,9.38683098,169.21,169.16,8.4672]
[1717531291864,2.1867,169.2,169.16,8.4672]
[1717531292580,9.38683098,169.21,169.17,17.5248]
[1717531292803,9.38683098,169.21,169.18,6.4031]
[1717531293166,7.20023098,169.21,169.18,6.4031]
[1717531293392,9.38693098,169.21,169.18,6.4031]
[1717531293891,2.1865,169.22,169.18,23.9277]
[1717531294185,2.1865,169.22,169.19,6.4849]
[1717531294561,2.1866,169.21,169.19,6.4849]
[1717531294773,2.1865,169.22,169.19,6.4849]
[1717531295964,4.3726,169.24,169.19,6.4849]
[1717531295965,2.1866,169.21,169.19,6.4849]
[1717531296260,2.1865,169.22,169.19,6.4849]
[1717531296999,2.1866,169.21,169.19,6.4849]
[1717531299372,2.1869,169.19,169.15,2.1873]
[1717531299590,2.1873,169.16,169.13,6.3471]
[1717531301967,11.57150274,169.18,169.13,6.3471]
[1717531302172,2.1873,169.16,169.12,3.0265608]
[1717531302985,2.1873,169.16,169.12,9.2842608]
[1717531303300,7.19740274,169.18,169.13,6.2577]
[1717531303600,9.38450274,169.18,169.14,2.1874]
[1717531303776,2.1871,169.17,169.13,8.4452]
[1717531304604,2.1873,169.16,169.13,8.4452]
[1717531305600,2.1873,169.16,169.13,6.2577]
[1717531305901,6.71,169.15,169.13,6.2577]
[1717531306071,6.71,169.15,169.13,8.4453]
[1717531306877,6.71,169.15,169.13,2.1876]
[1717531307776,6.71,169.14,169.12,0.8389608]
[1717531307977,6.71,169.13,169.12,0.8389608]
[1717531308582,6.71,169.13,169.12,3.0266608]
[1717531308798,6.71,169.13,169.12,0.8389608]
[1717531309001,6.71,169.13,169.12,3.0266608]
[1717531309589,6.71,169.13,169.12,0.8389608]
[1717531310200,35.6364,169.13,169.12,0.8389608]
[1717531310397,43.82254296,169.13,169.12,0.8389608]
[1717531310576,46.77764296,169.13,169.12,0.8389608]
[1717531310777,46.77764296,169.13,169.01,22.5235]
[1717531310778,2.1885,169.07,169.02,2.189]
[1717531310977,6.71,169.04,169.02,2.189]
[1717531311203,6.71,169.04,169.01,24.7126]
[1717531311391,6.71,169.04,169.01,14.7126]
[1717531311594,6.71,169.04,169.02,2.189]
[1717531311812,6.71,169.04,169.03,2.1889]
[1717531312125,10.37464296,169.07,169.03,2.1889]
[1717531312797,2.1887,169.05,169.01,2.1891]
[1717531313108,2.1888,169.04,169.0,2.1893]
[1717531313311,10.37494296,169.04,169.0,2.1893]
[1717531313477,8.18614296,169.04,168.99,2.1894]
[1717531313683,2.1891,169.02,168.98,2.1895]
[1717531313986,10.37524296,169.02,168.98,2.1895]
[1717531314393,10.37514296,169.02,168.98,2.1895]
[1717531314587,2.189,169.02,168.98,2.1895]
[1717531314818,2.189,169.02,168.97,2.1896]
[1717531315105,9.38660274,169.01,168.97,2.1896]
[1717531315418,9.38660274,169.01,168.95,0.8389608]
[1717531315419,2.1895,168.99,168.95,0.8389608]
[1717531315635,2.1896,168.98,168.95,0.8389608]
[1717531315778,24.5485,169.01,168.95,0.8389608]
[1717531315779,9.38690274,168.99,168.95,0.8389608]
[1717531316083,2.1896,168.98,168.95,0.8389608]
[1717531316282,7.19740274,168.99,168.95,3.0288608]
[1717531316283,9.38690274,168.99,168.95,3.0288608]
[1717531316496,2.1895,168.99,168.95,3.0288608]
[1717531316713,7.19740274,168.98,168.95,3.0288608]
[1717531320205,9.38700274,168.98,168.95,0.8389608]
[1717531321202,2.1897,168.97,168.95,0.8389608]
[1717531321635,2.1898,168.96,168.95,0.8389608]
[1717531321833,22.37811017,168.96,168.95,0.8389608]
[1717531322131,11.59881017,168.96,168.95,0.8389608]
[1717531322502,11.42881017,168.96,168.95,0.8389608]
[1717531323413,11.59881017,168.96,168.95,0.8389608]
[1717531323951,22.54811017,168.96,168.95,0.8389608]
[1717531324234,22.71811017,168.96,168.95,0.8389608]
[1717531326121,34.43261017,168.96,168.95,0.8389608]
[1717531327227,22.54811017,168.96,168.95,0.8389608]
[1717531327423,15.97851017,168.96,168.95,0.8389608]
[1717531327736,11.42881017,168.96,168.95,0.8389608]
[1717531328327,7.69945628,169.02,168.98,2.1895]
[1717531328533,10.9436,169.05,168.98,2.1895]
[1717531328708,2.1889,169.03,168.98,2.1895]
[1717531329109,2.1889,169.03,168.99,2.1894]
[1717531329326,2.1891,169.02,168.98,2.1895]
[1717531329742,2.1892,169.01,168.98,2.1895]
[1717531329928,2.1892,169.01,168.97,8.2036]
[1717531330313,2.1893,169.0,168.97,8.2036]
[1717531330528,2.1896,168.98,168.95,0.8389608]
[1717531330837,2.1898,168.96,168.95,0.8389608]
[1717531331630,6.5695,168.96,168.95,0.8389608]
[1717531331927,2.1906,168.9,168.89,0.3518871]
[1717531332131,2.1906,168.91,168.89,0.3518871]
[1717531333541,2.1904,168.92,168.89,0.3518871]
[1717531334714,2.1903,168.93,168.89,2.5425871]
[1717531334914,8.7656,168.94,168.89,2.5425871]
[1717531334915,2.1901,168.94,168.9,8.8547]
[1717531335229,11.561313,168.98,168.9,4.3812]
[1717531335420,2.1898,168.97,168.93,2.1901]
[1717531335733,2.1899,168.96,168.93,2.1902]
[1717531335949,2.1897,168.97,168.93,8.6929]
[1717531336127,2.1896,168.98,168.94,2.1901]
[1717531336533,2.1897,168.97,168.93,8.6928]
[1717531336753,2.1898,168.96,168.93,6.5027]
[1717531336950,2.1898,168.97,168.93,8.6929]
[1717531337328,2.1898,168.96,168.93,6.5027]
[1717531337650,4.3797,168.96,168.9,2.1906]
[1717531337855,4.3801,168.95,168.89,0.3518871]
[1717531338154,2.1903,168.92,168.89,0.3518871]
[1717531338545,2.1903,168.93,168.89,2.5425871]
[1717531339259,2.1901,168.94,168.9,2.1906]
[1717531339655,2.1901,168.94,168.91,2.1905]
[1717531340032,10.9488,168.97,168.91,2.1905]
[1717531340232,2.19,168.95,168.91,2.1905]
[1717531340537,2.1903,168.93,168.89,2.5425871]
[1717531340759,2.1903,168.93,168.9,2.1906]
[1717531341057,2.1903,168.92,168.89,0.3518871]
[1717531342358,2.1905,168.91,168.89,0.3518871]
[1717531342731,2.1906,168.9,168.89,0.3518871]
[1717531344163,20.42364059,168.93,168.89,0.3518871]
[1717531344483,2.1905,168.91,168.89,0.3518871]
[1717531345158,2.1904,168.92,168.89,0.3518871]
[1717531346161,2.1904,168.92,168.89,2.5425871]
[1717531346359,10.13455461,168.93,168.9,2.1906]
[1717531346565,10.13455461,168.93,168.89,8.5462871]
[1717531346566,2.1904,168.92,168.89,8.5462871]
[1717531347091,7.94435461,168.93,168.9,15.0363]
[1717531347260,2.1899,168.96,168.92,8.3411]
[1717531347565,2.1896,168.98,168.94,2.19]
[1717531348349,2.1896,168.98,168.94,8.3408]
[1717531348663,21.47743459,169.01,168.94,6.1508]
[1717531348862,15.3222,169.04,168.97,2.1896]
[1717531349060,2.1892,169.02,168.98,2.1895]
[1717531349443,2.1892,169.02,168.98,8.3403]
[1717531349644,2.1892,169.01,168.98,6.1508]
[1717531349852,2.1893,169.0,168.98,6.1508]
[1717531350866,2.1895,168.99,168.96,6.1508]
[1717531351051,2.1896,168.98,168.96,6.1508]
[1717531352562,2.1895,168.99,168.96,6.1508]
[1717531352978,2.1896,168.98,168.94,8.3408]
[1717531353166,6.5681,169.0,168.94,6.1508]
[1717531353344,2.1898,168.96,168.94,6.1508]
[1717531353544,6.5692,168.97,168.91,2.1904]
[1717531353765,2.19,168.95,168.91,2.1904]
[1717531353951,10.9488,168.97,168.9,21.1871]
[1717531354161,0.17,168.96,168.9,6.1508]
[1717531354344,11.1194,168.96,168.9,6.1508]
[1717531354668,2.1903,168.93,168.9,2.1906]
[1717531354963,19.31670461,168.96,168.9,2.1906]
[1717531355276,2.1901,168.94,168.9,2.1906]
[1717531355563,2.1902,168.93,168.89,2.5425871]
[1717531355764,2.1901,168.94,168.9,2.1905]
[1717531355957,2.1901,168.94,168.91,2.1905]
[1717531356263,2.1901,168.94,168.91,8.5249]
[1717531356647,2.1901,168.94,168.91,6.3344]
[1717531356841,2.1901,168.94,168.91,8.5248]
[1717531357565,8.19720461,168.96,168.92,2.1903]
[1717531357867,8.19720461,168.96,168.93,8.5245]
[1717531358373,2.1896,168.98,168.94,2.1901]
[1717531358674,2.1896,168.98,168.95,6.3344]
[1717531358849,2.1896,168.98,168.96,6.3344]
[1717531359053,2.1895,168.99,168.96,8.5242]
[1717531359554,2.1894,169.0,168.97,6.3344]
[1717531359779,2.1894,169.0,168.97,8.5241]
[1717531360286,8.13740461,169.01,168.97,6.3344]
[1717531360455,2.1892,169.01,168.98,6.3344]
[1717531360782,2.1894,169.0,168.98,6.3344]
[1717531362050,2.1892,169.01,168.98,6.3344]
[1717531362664,2.1892,169.01,168.98,8.524]
[1717531363073,2.1891,169.02,168.99,6.0798]
[1717531364269,2.1891,169.02,168.99,8.2692]
[1717531364777,2.1891,169.02,168.99,6.0798]
[1717531365675,2.1891,169.02,168.99,8.2692]
[1717531365865,2.189,169.03,169.0,6.0798]
[1717531366865,2.189,169.03,169.01,6.0798]
[1717531367473,2.189,169.02,169.01,6.0798]
[1717531367661,2.1889,169.03,169.01,6.0798]
[1717531367991,2.189,169.02,169.01,6.0798]
[1717531368491,2.1892,169.01,168.99,6.2018]
[1717531370099,2.1891,169.02,168.99,6.2018]
[1717531370990,2.1892,169.01,168.99,6.2018]
[1717531371689,2.1892,169.01,168.97,2.1896]
[1717531371898,2.1892,169.01,168.97,8.3555]
[1717531373168,2.1891,169.02,168.98,2.1895]
[1717531373391,2.1891,169.02,168.99,2.1894]
[1717531373568,12.515105,169.04,168.99,8.3043]
[1717531373569,2.189,169.03,168.99,8.3043]
[1717531373779,10.326205,169.04,168.98,35.43]
[1717531373996,2.1887,169.05,169.02,2.189]
[1717531374296,2.1886,169.06,169.02,2.189]
[1717531374675,2.1887,169.05,169.02,2.189]
[1717531374880,2.1887,169.05,169.01,8.2373]
[1717531375286,2.1887,169.05,169.02,8.2372]
[1717531375489,2.1886,169.06,169.02,8.2372]
[1717531377010,32.79243084,169.11,169.02,8.2372]
[1717531377011,24.73253459,169.16,169.03,56.9919]
[1717531377163,2.1882,169.09,169.04,8.4287]
[1717531377363,2.1883,169.08,169.04,8.4287]
[1717531378175,10.9396,169.11,169.05,2.1886]
[1717531378176,2.1882,169.09,169.05,2.1886]
[1717531379572,2.1881,169.1,169.06,8.3168]
[1717531380888,2.1883,169.08,169.04,2.1887]
[1717531382902,2.1882,169.09,169.05,2.1886]
[1717531383188,2.1881,169.1,169.06,2.1885]
[1717531383398,2.1879,169.11,169.07,2.1883]
[1717531383575,2.188,169.1,169.06,2.1885]
[1717531383774,20.77210222,169.12,169.04,10.9439]
[1717531383775,2.1879,169.11,169.07,2.1884]
[1717531384495,2.188,169.1,169.06,2.1885]
[1717531384997,2.1879,169.11,169.07,2.1884]
[1717531386289,2.78990222,169.12,169.08,2.1883]
[1717531386590,9.42195128,169.13,169.09,8.7642]
[1717531387591,2.1878,169.12,169.09,8.7642]
[1717531388175,9.42195128,169.13,169.09,8.7642]
[1717531388687,2.1879,169.11,169.09,6.5761]
[1717531389380,10.9384,169.13,169.09,6.5761]
[1717531389698,2.188,169.11,169.07,8.7645]
[1717531389908,2.188,169.1,169.07,6.5761]
[1717531390210,2.1881,169.1,169.06,6.5761]
[1717531390500,2.1881,169.1,169.07,2.1884]
[1717531390964,2.1879,169.11,169.07,24.4146]
[1717531391172,2.1879,169.11,169.08,6.5761]
[1717531391388,2.1881,169.1,169.08,6.5761]
[1717531393083,2.1881,169.1,169.07,2.1883]
[1717531393779,2.1881,169.1,169.06,2.1884]
[1717531393980,2.1881,169.09,169.06,8.7645]
[1717531394690,2.1881,169.09,169.06,6.5761]
[1717531394883,2.1881,169.09,169.06,8.7646]
[1717531395394,2.1881,169.1,169.06,8.7646]
[1717531395602,2.1881,169.1,169.07,8.7416]
[1717531397019,2.1882,169.09,169.07,6.5532]
[1717531397314,2.1882,169.09,169.04,39.8076]
[1717531397315,2.1882,169.09,169.05,8.7028]
[1717531398203,2.1882,169.09,169.06,2.1885]
[1717531398720,2.1882,169.09,169.05,8.7028]
[1717531399709,20.17,169.12,169.02,35.43]
[1717531399907,2.1885,169.07,169.03,2.1889]
[1717531400111,2.1885,169.07,169.04,2.1887]
[1717531400309,2.1886,169.06,169.0,10.8043]
[1717531400509,2.1886,169.06,169.0,17.3723]
[1717531400693,2.1885,169.07,169.03,2.1888]
[1717531401005,2.1883,169.08,169.04,8.6144]
[1717531401185,2.1883,169.08,169.05,2.1886]
[1717531401613,2.1883,169.08,169.04,8.6144]
[1717531402608,2.1883,169.08,169.05,2.1886]
[1717531402908,2.1881,169.09,169.06,2.1885]
[1717531403222,7.8363535,169.1,169.07,2.1884]
[1717531403223,10.0244535,169.1,169.07,2.1884]
[1717531403594,10.0244535,169.1,169.06,2.1884]
[1717531404101,2.1881,169.09,169.06,2.1884]
[1717531404799,2.1881,169.09,169.05,6.4257]
[1717531405007,2.1881,169.09,169.05,8.6143]
[1717531406330,19.6892,169.13,169.07,2.1883]
[1717531406505,10.9378,169.14,169.08,2.1881]
[1717531406826,2.1878,169.12,169.09,2.1881]
[1717531407114,22.91095906,169.15,169.09,8.6138]
[1717531407115,2.1876,169.13,169.09,8.6138]
[1717531407331,2.1876,169.13,169.1,2.188]
[1717531408403,2.1876,169.13,169.09,8.6138]
[1717531408606,2.1876,169.13,169.1,2.188]
[1717531409001,2.1875,169.14,169.11,2.1879]
[1717531409206,2.1875,169.14,169.11,8.3356]
[1717531409406,7.59895906,169.17,169.12,2.1876]
[1717531409798,2.1873,169.16,169.12,8.4564]
[1717531410223,9.78605906,169.17,169.13,2.1876]
[1717531410424,2.1869,169.19,169.15,2.1874]
[1717531410593,2.1869,169.19,169.15,8.723]
[1717531410798,17.03779215,169.2,169.16,8.7228]
[1717531410799,2.1867,169.2,169.16,8.7228]
[1717531411405,2.1867,169.21,169.17,2.1871]
[1717531411919,2.1867,169.21,169.17,8.7227]
[1717531412099,2.1868,169.2,169.17,6.5356]
[1717531412298,2.1867,169.2,169.17,6.5356]
[1717531412523,4.3728,169.23,169.17,8.7227]
[1717531413028,2.1867,169.21,169.17,8.7227]
[1717531414032,2.1865,169.22,169.18,2.1869]
[1717531414200,2.1865,169.22,169.18,8.7225]
[1717531414899,2.1865,169.22,169.19,6.4836]
[1717531415320,9.71293684,169.24,169.2,8.6702]
[1717531415815,2.1863,169.23,169.2,6.4836]
[1717531416020,9.71293684,169.24,169.2,8.6702]
[1717531416224,7.52673684,169.24,169.21,2.1866]
[1717531416722,2.1862,169.24,169.2,37.6166]
[1717531416911,6.558,169.26,169.21,6.0127]
[1717531417106,2.1864,169.23,169.21,6.0127]
[1717531418203,2.1864,169.23,169.19,8.3621]
[1717531418397,2.1865,169.22,169.19,8.3621]
[1717531418603,2.1865,169.22,169.19,6.1753]
[1717531419706,4.3727,169.23,169.17,37.617]
[1717531419903,2.1869,169.19,169.16,37.6172]
[1717531420422,2.187,169.18,169.15,2.1873]
[1717531420621,2.187,169.18,169.14,43.8697]
[1717531421510,2.187,169.18,169.15,2.1873]
[1717531423721,2.1871,169.17,169.11,41.9936]
[1717531423929,2.1871,169.17,169.13,2.1875]
[1717531424226,4.3745,169.16,169.1,35.43]
[1717531424411,2.1875,169.14,169.1,37.6179]
[1717531424607,2.1876,169.13,169.1,35.43]
[1717531425120,2.1878,169.12,169.08,43.8844]
[1717531425424,2.1875,169.14,169.11,2.1879]
[1717531425631,2.1875,169.14,169.1,2.1879]
[1717531426827,7.8734035,169.17,169.11,41.5949]
[1717531427038,7.8734035,169.17,169.15,2.1873]
[1717531428015,6.15542509,169.23,169.14,6.3223]
[1717531428016,12.71482509,169.23,169.14,6.3223]
[1717531428207,12.71482509,169.23,169.14,8.5097]
[1717531428208,2.1871,169.18,169.14,8.5097]
[1717531428624,2.1871,169.17,169.14,8.5097]
[1717531429414,2.1871,169.17,169.14,6.3223]
[1717531429616,2.1871,169.17,169.13,2.1876]
[1717531430016,2.1871,169.17,169.12,35.43]
[1717531430017,2.1871,169.17,169.14,2.1875]
[1717531430218,2.1872,169.16,169.13,2.1876]
[1717531430534,2.1872,169.17,169.13,2.1876]
[1717531430940,2.1872,169.17,169.14,2.1875]
[1717531432435,2.187,169.18,169.14,2.1875]
[1717531432810,2.187,169.18,169.15,2.1874]
[1717531433010,27.48327449,169.21,169.15,2.1874]
[1717531433011,2.1869,169.19,169.15,2.1874]
[1717531433245,2.1869,169.19,169.12,52.8225]
[1717531433246,12.17647449,169.21,169.12,48.447]
[1717531433428,2.1869,169.19,169.15,2.1873]
[1717531433629,2.187,169.18,169.15,2.1873]